Workbook

Sheet 수도권
B1: 수도권 지역 대리점 재고 현황
B3: 총 재고 금액 | C3: =SUM(E8:E49) -> 104699102 | D3: 감소율 | E3: =F3*0.1 -> 0.2 | F3: 2
B4: 총 감소 금액 | C4: =SUM(F8:F49) -> 20939820.4
B7: 대리점코드 | C7: 대리점명 | D7: 당월재고 | E7: 재고금액 | F7: 감소금액
B8: 110001 | C8: 서울성동대리점 | D8: 64 | E8: 5232000 | F8: =E8*$E$3 -> 1046400
B9: 110002 | C9: 경기옹진대리점 | D9: 8 | E9: 235000 | F9: =E9*$E$3 -> 47000
B10: 110003 | C10: 서울성북대리점 | D10: 223 | E10: 8720000 | F10: =E10*$E$3 -> 1744000
B11: 110004 | C11: 경기용인대리점 | D11: 20 | E11: 1546000 | F11: =E11*$E$3 -> 309200
B12: 110005 | C12: 서울송파대리점 | D12: 146 | E12: 10948000 | F12: =E12*$E$3 -> 2189600
B13: 110006 | C13: 경기서구대리점 | D13: 14 | E13: 1380000 | F13: =E13*$E$3 -> 276000
B14: 110007 | C14: 서울양천대리점 | D14: 46 | E14: 1280000 | F14: =E14*$E$3 -> 256000
B15: 110008 | C15: 경기안산대리점 | D15: 5 | E15: 175000 | F15: =E15*$E$3 -> 35000
B16: 110009 | C16: 서울서초대리점 | D16: 75 | E16: 5546000 | F16: =E16*$E$3 -> 1109200
B17: 110010 | C17: 경기파주대리점 | D17: 54 | E17: 4468000 | F17: =E17*$E$3 -> 893600
B18: 110011 | C18: 경기중구대리점 | D18: 20 | E18: 2864000 | F18: =E18*$E$3 -> 572800
B19: 110012 | C19: 서울동작대리점 | D19: 161 | E19: 11256000 | F19: =E19*$E$3 -> 2251200
B20: 110013 | C20: 경기구리대리점 | D20: 14 | E20: 380000 | F20: =E20*$E$3 -> 76000
B21: 110014 | C21: 서울영등포대리점 | D21: 49 | E21: 631200 | F21: =E21*$E$3 -> 126240
B22: 110015 | C22: 서울서대문대리점 | D22: 206 | E22: 19547000 | F22: =E22*$E$3 -> 3909400
B23: 110016 | C23: 경기남양주대리점 | D23: 14 | E23: 312000 | F23: =E23*$E$3 -> 62400
B24: 110017 | C24: 경기과천대리점 | D24: 15 | E24: 656000 | F24: =E24*$E$3 -> 131200
B25: 110018 | C25: 경기하남대리점 | D25: 13 | E25: 832000 | F25: =E25*$E$3 -> 166400
B26: 110019 | C26: 경기양평대리점 | D26: 6 | E26: 212902 | F26: =E26*$E$3 -> 42580.4
B27: 110020 | C27: 경기수원대리점 | D27: 17 | E27: 552000 | F27: =E27*$E$3 -> 110400
B28: 110021 | C28: 경기남동대리점 | D28: 28 | E28: 1200000 | F28: =E28*$E$3 -> 240000
B29: 110022 | C29: 경기안성대리점 | D29: 7 | E29: 1088000 | F29: =E29*$E$3 -> 217600
B30: 110023 | C30: 경기포천대리점 | D30: 8 | E30: 624000 | F30: =E30*$E$3 -> 124800
B31: 110024 | C31: 경기안양대리점 | D31: 8 | E31: 608000 | F31: =E31*$E$3 -> 121600
B32: 110025 | C32: 경기고양대리점 | D32: 19 | E32: 1385000 | F32: =E32*$E$3 -> 277000
B33: 110026 | C33: 경기가평대리점 | D33: 28 | E33: 1440000 | F33: =E33*$E$3 -> 288000
B34: 110027 | C34: 경기동두천대리점 | D34: 19 | E34: 1840000 | F34: =E34*$E$3 -> 368000
B35: 110028 | C35: 경기양주대리점 | D35: 15 | E35: 345000 | F35: =E35*$E$3 -> 69000
B36: 110029 | C36: 경기여주대리점 | D36: 7 | E36: 840000 | F36: =E36*$E$3 -> 168000
B37: 110030 | C37: 서울마포대리점 | D37: 35 | E37: 624000 | F37: =E37*$E$3 -> 124800
B38: 110031 | C38: 경기군포대리점 | D38: 10 | E38: 770000 | F38: =E38*$E$3 -> 154000
B39: 110032 | C39: 경기의정부대리점 | D39: 7 | E39: 1680000 | F39: =E39*$E$3 -> 336000
B40: 201001 | C40: 서울은평대리점 | D40: 94 | E40: 7152000 | F40: =E40*$E$3 -> 1430400
B41: 201002 | C41: 경기성남대리점 | D41: 5 | E41: 660000 | F41: =E41*$E$3 -> 132000
B42: 201003 | C42: 경기광명대리점 | D42: 7 | E42: 414000 | F42: =E42*$E$3 -> 82800
B43: 201004 | C43: 경기연수대리점 | D43: 15 | E43: 1152000 | F43: =E43*$E$3 -> 230400
B44: 201005 | C44: 경기의왕대리점 | D44: 14 | E44: 1326000 | F44: =E44*$E$3 -> 265200
B45: 201006 | C45: 경기평택대리점 | D45: 21 | E45: 816000 | F45: =E45*$E$3 -> 163200
B46: 201007 | C46: 경기연천대리점 | D46: 8 | E46: 275000 | F46: =E46*$E$3 -> 55000
B47: 201008 | C47: 경기시흥대리점 | D47: 12 | E47: 856000 | F47: =E47*$E$3 -> 171200
B48: 201009 | C48: 경기화성대리점 | D48: 20 | E48: 1656000 | F48: =E48*$E$3 -> 331200
B49: 201010 | C49: 경기오산대리점 | D49: 12 | E49: 1175000 | F49: =E49*$E$3 -> 235000
